[Event "Live Chess"]
[Site "Chess.com"]
[Date "2023.05.20"]
[Round "-"]
[White "SirEntrails"]
[Black "djw60"]
[Result "0-1"]
[WhiteElo "537"]
[BlackElo "2109"]
[TimeControl "300"]
[EndTime "12:46:29 PDT"]
[Termination "djw60 won by checkmate"]

1. e4 {[%clk 0:04:56.1]} 1... g6 {[%clk 0:04:57.2]} 2. Nf3 {[%clk 0:04:52.6]}
2... Bg7 {[%clk 0:04:56.3]} 3. d4 {[%clk 0:04:47.4]} 3... d6 {[%clk 0:04:55.2]}
4. c3 {[%clk 0:04:45.8]} 4... Nf6 {[%clk 0:04:52.1]} 5. Nbd2 {[%clk 0:04:43.6]}
5... O-O {[%clk 0:04:49.8]} 6. Bc4 {[%clk 0:04:41.4]} 6... Nc6 {[%clk
0:04:46.1]} 7. d5 {[%clk 0:04:37]} 7... Nb8 {[%clk 0:04:42.1]} 8. O-O {[%clk
0:04:32.1]} 8... c6 {[%clk 0:04:39]} 9. Nb3 {[%clk 0:04:22]} 9... Bg4 {[%clk
0:04:35.3]} 10. h3 {[%clk 0:04:16.9]} 10... Bxf3 {[%clk 0:04:33.4]} 11. Qxf3
{[%clk 0:04:15.2]} 11... Nbd7 {[%clk 0:04:31.2]} 12. Bg5 {[%clk 0:04:11.3]}
12... a5 {[%clk 0:04:19.8]} 13. a4 {[%clk 0:03:51.3]} 13... Qc7 {[%clk 0:04:13]}
14. Rfe1 {[%clk 0:03:41.4]} 14... Ne5 {[%clk 0:04:09.2]} 15. Qe2 {[%clk
0:03:26.2]} 15... h6 {[%clk 0:04:06]} 16. Bxf6 {[%clk 0:03:24.1]} 16... Bxf6
{[%clk 0:04:03.4]} 17. Qc2 {[%clk 0:03:06.1]} 17... Nxc4 {[%clk 0:04:01.4]} 18.
Qe2 {[%clk 0:02:56.9]} 18... cxd5 {[%clk 0:03:54.5]} 19. exd5 {[%clk 0:02:54.6]}
19... Kg7 {[%clk 0:03:51.7]} 20. Nd4 {[%clk 0:02:48]} 20... Bxd4 {[%clk
0:03:31.9]} 21. cxd4 {[%clk 0:02:44.9]} 21... Nb6 {[%clk 0:03:25.3]} 22. b3
{[%clk 0:02:42.5]} 22... Nxd5 {[%clk 0:03:22.1]} 23. Rac1 {[%clk 0:02:39.2]}
23... Qd7 {[%clk 0:03:20]} 24. Qb5 {[%clk 0:02:28.4]} 24... Qxb5 {[%clk
0:03:17.5]} 25. axb5 {[%clk 0:02:27.3]} 25... Rfc8 {[%clk 0:03:16.7]} 26. Rxc8
{[%clk 0:02:24.9]} 26... Rxc8 {[%clk 0:03:14.5]} 27. g4 {[%clk 0:02:10.8]} 27...
Rc3 {[%clk 0:03:12.6]} 28. b4 {[%clk 0:02:07.5]} 28... axb4 {[%clk 0:03:10.8]}
29. Rb1 {[%clk 0:02:02.4]} 29... b3 {[%clk 0:03:09.3]} 30. Kg2 {[%clk
0:01:59.2]} 30... e6 {[%clk 0:03:02.5]} 31. f3 {[%clk 0:01:56.7]} 31... Rc2+
{[%clk 0:03:00.4]} 32. Kf1 {[%clk 0:01:52.4]} 32... b2 {[%clk 0:02:58.9]} 33.
Ke1 {[%clk 0:01:50]} 33... Rc1+ {[%clk 0:02:57]} 34. Kd2 {[%clk 0:01:34.8]}
34... Rxb1 {[%clk 0:02:55.2]} 35. Kc2 {[%clk 0:01:33.9]} 35... Rf1 {[%clk
0:02:50.9]} 36. Kxb2 {[%clk 0:01:30.5]} 36... Rxf3 {[%clk 0:02:50]} 37. Kc2
{[%clk 0:01:29.6]} 37... Rxh3 {[%clk 0:02:48.8]} 38. Kd2 {[%clk 0:01:28.6]}
38... Rg3 {[%clk 0:02:48]} 39. Kc2 {[%clk 0:01:27.3]} 39... Rxg4 {[%clk
0:02:47.6]} 40. Kd3 {[%clk 0:01:26]} 40... h5 {[%clk 0:02:46.5]} 41. Kc4 {[%clk
0:01:24.6]} 41... h4 {[%clk 0:02:46.4]} 42. Kd3 {[%clk 0:01:23]} 42... h3 {[%clk
0:02:45.3]} 43. b6 {[%clk 0:01:22.4]} 43... h2 {[%clk 0:02:43]} 44. Kc4 {[%clk
0:01:21.1]} 44... h1=Q {[%clk 0:02:38.7]} 45. Kd3 {[%clk 0:01:19.6]} 45... Qh3+
{[%clk 0:02:37.6]} 46. Kc4 {[%clk 0:01:18.5]} 46... Qc3+ {[%clk 0:02:33.7]} 47.
Kb5 {[%clk 0:01:16.4]} 47... Qb4# {[%clk 0:02:31.3]} 0-1

[Event "Live Chess"]
[Site "Chess.com"]
[Date "2023.05.20"]
[Round "-"]
[White "MaximKris"]
[Black "HoarseyHorsey"]
[Result "1/2-1/2"]
[WhiteElo "1842"]
[BlackElo "1395"]
[TimeControl "300"]
[EndTime "12:46:31 PDT"]
[Termination "Game drawn by repetition"]

1. e4 {[%clk 0:04:58.9]} 1... c5 {[%clk 0:04:58.3]} 2. Nf3 {[%clk 0:04:58.3]}
2... e6 {[%clk 0:04:57.8]} 3. c3 {[%clk 0:04:56.7]} 3... d5 {[%clk 0:04:56.7]}
4. Bd3 {[%clk 0:04:51.6]} 4... Nc6 {[%clk 0:04:49.9]} 5. O-O {[%clk 0:04:46.5]}
5... c4 {[%clk 0:04:44.8]} 6. exd5 {[%clk 0:04:32.3]} 6... exd5 {[%clk
0:04:43.5]} 7. Re1+ {[%clk 0:04:27.8]} 7... Be7 {[%clk 0:04:42]} 8. Bc2 {[%clk
0:04:06.8]} 8... Bg4 {[%clk 0:04:40.3]} 9. h3 {[%clk 0:04:05.4]} 9... Bh5 {[%clk
0:04:38.8]} 10. d4 {[%clk 0:04:03.8]} 10... Nf6 {[%clk 0:04:32.3]} 11. Bg5
{[%clk 0:04:01]} 11... O-O {[%clk 0:04:30.2]} 12. g4 {[%clk 0:03:57.6]} 12...
Bg6 {[%clk 0:04:13.4]} 13. Bxg6 {[%clk 0:03:35.1]} 13... hxg6 {[%clk 0:04:13.3]}
14. Ne5 {[%clk 0:03:34]} 14... Ne4 {[%clk 0:04:09.7]} 15. Nxc6 {[%clk
0:03:32.3]} 15... bxc6 {[%clk 0:04:05.1]} 16. Bxe7 {[%clk 0:03:32.2]} 16... Qxe7
{[%clk 0:04:00.4]} 17. f3 {[%clk 0:03:32.1]} 17... Qh4 {[%clk 0:03:57.9]} 18.
fxe4 {[%clk 0:03:30.6]} 18... Qxh3 {[%clk 0:03:55]} 19. Qe2 {[%clk 0:03:28.9]}
19... dxe4 {[%clk 0:03:52.3]} 20. Qg2 {[%clk 0:03:27.4]} 20... Qh6 {[%clk
0:03:48]} 21. Qxe4 {[%clk 0:03:23]} 21... Rae8 {[%clk 0:03:46]} 22. Qxe8 {[%clk
0:03:19.6]} 22... Rxe8 {[%clk 0:03:45.4]} 23. Rxe8+ {[%clk 0:03:19.3]} 23... Kh7
{[%clk 0:03:44.5]} 24. Re2 {[%clk 0:03:19.2]} 24... Qf4 {[%clk 0:03:42.4]} 25.
Nd2 {[%clk 0:03:15.4]} 25... Qxg4+ {[%clk 0:03:41.3]} 26. Rg2 {[%clk 0:03:14.9]}
26... Qf4 {[%clk 0:03:37.6]} 27. Rf1 {[%clk 0:03:13.7]} 27... Qc7 {[%clk
0:03:33.9]} 28. Ne4 {[%clk 0:03:06.9]} 28... a5 {[%clk 0:03:25.9]} 29. Ng5+
{[%clk 0:03:00.1]} 29... Kg8 {[%clk 0:03:25.1]} 30. Nxf7 {[%clk 0:02:58.3]}
30... Qb7 {[%clk 0:03:19]} 31. Rxg6 {[%clk 0:02:54.8]} 31... Qxb2 {[%clk
0:03:09.3]} 32. Rg2 {[%clk 0:02:33.9]} 32... Qxc3 {[%clk 0:03:05]} 33. Nh6+
{[%clk 0:02:32]} 33... Kh7 {[%clk 0:03:03.1]} 34. Nf5 {[%clk 0:02:28.4]} 34...
Qd3 {[%clk 0:02:49.7]} 35. Rxg7+ {[%clk 0:02:12.4]} 35... Kh8 {[%clk 0:02:48.7]}
36. Rg2 {[%clk 0:02:12.3]} 36... c3 {[%clk 0:02:46]} 37. Nh6 {[%clk 0:02:09.2]}
37... c2 {[%clk 0:02:41.9]} 38. Nf7+ {[%clk 0:02:08]} 38... Kh7 {[%clk
0:02:39.4]} 39. Ne5 {[%clk 0:02:00.6]} 39... Qxd4+ {[%clk 0:02:37]} 40. Kh1
{[%clk 0:01:57.2]} 40... Qd1 {[%clk 0:02:22.5]} 41. Rgg1 {[%clk 0:01:46.8]}
41... Qh5+ {[%clk 0:02:20.6]} 42. Kg2 {[%clk 0:01:44.4]} 42... Qxe5 {[%clk
0:02:18]} 43. Rf3 {[%clk 0:01:40]} 43... Qe2+ {[%clk 0:02:11.4]} 44. Rf2 {[%clk
0:01:38.6]} 44... Qd1 {[%clk 0:02:09.7]} 45. Rff1 {[%clk 0:01:33.6]} 45... Qd5+
{[%clk 0:02:07.8]} 46. Rf3 {[%clk 0:01:31.4]} 46... Qd2+ {[%clk 0:02:05.4]} 47.
Rf2 {[%clk 0:01:30.3]} 47... Qd5+ {[%clk 0:02:04]} 48. Rf3 {[%clk 0:01:29.3]}
48... Qd2+ {[%clk 0:02:02.9]} 49. Rf2 {[%clk 0:01:28.5]} 49... Qd5+ {[%clk
0:02:01.7]} 50. Rf3 {[%clk 0:01:27.1]} 1/2-1/2

[Event "Live Chess"]
[Site "Chess.com"]
[Date "2023.05.20"]
[Round "-"]
[White "domrobson"]
[Black "wadsy27"]
[Result "1-0"]
[WhiteElo "1735"]
[BlackElo "2558"]
[TimeControl "300"]
[EndTime "12:46:35 PDT"]
[Termination "domrobson won on time"]

1. d4 {[%clk 0:04:58.4]} 1... d5 {[%clk 0:04:51.7]} 2. c4 {[%clk 0:04:56.5]}
2... c6 {[%clk 0:04:47.8]} 3. Nf3 {[%clk 0:04:55.4]} 3... Nf6 {[%clk 0:04:45.7]}
4. Nc3 {[%clk 0:04:54.4]} 4... dxc4 {[%clk 0:04:44.7]} 5. e3 {[%clk 0:04:52]}
5... b5 {[%clk 0:04:43.1]} 6. a4 {[%clk 0:04:50.5]} 6... b4 {[%clk 0:04:42]} 7.
Na2 {[%clk 0:04:49.5]} 7... e6 {[%clk 0:04:38.3]} 8. Bxc4 {[%clk 0:04:46.2]}
8... Bb7 {[%clk 0:04:36.9]} 9. O-O {[%clk 0:04:43.9]} 9... Nbd7 {[%clk
0:04:35.2]} 10. b3 {[%clk 0:04:41.7]} 10... c5 {[%clk 0:04:24.4]} 11. Bb2 {[%clk
0:04:34.7]} 11... Qc7 {[%clk 0:04:15.8]} 12. Rc1 {[%clk 0:04:30.6]} 12... Ng4
{[%clk 0:03:58.9]} 13. d5 {[%clk 0:04:21.5]} 13... Bd6 {[%clk 0:03:41.6]} 14. h3
{[%clk 0:04:11.5]} 14... Nh2 {[%clk 0:03:35.3]} 15. Nxh2 {[%clk 0:04:07]} 15...
Bxh2+ {[%clk 0:03:33]} 16. Kh1 {[%clk 0:04:06.3]} 16... O-O-O {[%clk 0:02:50.3]}
17. Nxb4 {[%clk 0:04:00]} 17... Nb6 {[%clk 0:02:40.7]} 18. Na6 {[%clk
0:03:48.6]} 18... Bxa6 {[%clk 0:02:22.4]} 19. Bxa6+ {[%clk 0:03:47]} 19... Kb8
{[%clk 0:02:21.6]} 20. Qf3 {[%clk 0:03:30.7]} 20... Bd6 {[%clk 0:01:52.6]} 21.
b4 {[%clk 0:03:19.8]} 21... Nxd5 {[%clk 0:01:32.8]} 22. bxc5 {[%clk 0:03:17.7]}
22... Be7 {[%clk 0:00:57.1]} 23. Bxg7 {[%clk 0:02:47.3]} 23... Ka8 {[%clk
0:00:52.6]} 24. Bxh8 {[%clk 0:02:33.3]} 24... Rxh8 {[%clk 0:00:52.5]} 25. Rb1
{[%clk 0:02:30]} 25... Rb8 {[%clk 0:00:44.5]} 26. e4 {[%clk 0:02:28.6]} 26...
Nb4 {[%clk 0:00:36.4]} 27. e5+ {[%clk 0:01:56.6]} 27... Nd5 {[%clk 0:00:32.7]}
28. Rfc1 {[%clk 0:01:47.2]} 28... Qc6 {[%clk 0:00:20.8]} 29. Bb5 {[%clk
0:01:44.6]} 29... Qc7 {[%clk 0:00:17.7]} 30. Rd1 {[%clk 0:01:41]} 30... a6
{[%clk 0:00:15.3]} 31. Rxd5 {[%clk 0:01:38.5]} 31... exd5 {[%clk 0:00:13.8]} 32.
Qxd5+ {[%clk 0:01:37.3]} 32... Ka7 {[%clk 0:00:13.2]} 33. Bd3 {[%clk 0:01:30]}
33... Rxb1+ {[%clk 0:00:12]} 34. Bxb1 {[%clk 0:01:28.8]} 34... Qxc5 {[%clk
0:00:11.9]} 35. Qxc5+ {[%clk 0:01:26.9]} 35... Bxc5 {[%clk 0:00:10.7]} 36. Bxh7
{[%clk 0:01:24.4]} 36... Bxf2 {[%clk 0:00:09.3]} 37. Bg8 {[%clk 0:01:23.3]}
37... Bg3 {[%clk 0:00:08]} 38. Bxf7 {[%clk 0:01:22.7]} 38... Bxe5 {[%clk
0:00:07.9]} 39. g4 {[%clk 0:01:19.4]} 39... Kb6 {[%clk 0:00:07.3]} 40. h4 {[%clk
0:01:18.1]} 40... Bg3 {[%clk 0:00:06.1]} 41. h5 {[%clk 0:01:13.3]} 41... Bf4
{[%clk 0:00:06]} 42. Kg2 {[%clk 0:01:12.1]} 42... Kc5 {[%clk 0:00:05.1]} 43. Kf3
{[%clk 0:01:12]} 43... Bh6 {[%clk 0:00:03.1]} 44. Ke4 {[%clk 0:01:11.2]} 44...
Kd6 {[%clk 0:00:02.7]} 45. Kf5 {[%clk 0:01:10.3]} 45... Ke7 {[%clk 0:00:02.2]}
46. Bc4 {[%clk 0:01:09.3]} 1-0

[Event "Live Chess"]
[Site "Chess.com"]
[Date "2023.05.20"]
[Round "-"]
[White "Stanbad1"]
[Black "PiotrD11"]
[Result "1-0"]
[WhiteElo "2419"]
[BlackElo "1342"]
[TimeControl "300"]
[EndTime "12:47:09 PDT"]
[Termination "Stanbad1 won by resignation"]

1. d4 {[%clk 0:04:58.1]} 1... d5 {[%clk 0:04:59.9]} 2. Nc3 {[%clk 0:04:56.3]}
2... Nf6 {[%clk 0:04:59.8]} 3. Bf4 {[%clk 0:04:55]} 3... e6 {[%clk 0:04:55.8]}
4. e3 {[%clk 0:04:54]} 4... Bd6 {[%clk 0:04:54.5]} 5. Bxd6 {[%clk 0:04:52.6]}
5... Qxd6 {[%clk 0:04:54.4]} 6. Nf3 {[%clk 0:04:51.7]} 6... O-O {[%clk
0:04:53.8]} 7. Bd3 {[%clk 0:04:50.9]} 7... c5 {[%clk 0:04:50.9]} 8. dxc5 {[%clk
0:04:50.8]} 8... Qxc5 {[%clk 0:04:50.1]} 9. O-O {[%clk 0:04:50.5]} 9... b6
{[%clk 0:04:41.9]} 10. Re1 {[%clk 0:04:47]} 10... Bb7 {[%clk 0:04:41]} 11. e4
{[%clk 0:04:46.3]} 11... d4 {[%clk 0:04:39.6]} 12. Ne2 {[%clk 0:04:41.9]} 12...
e5 {[%clk 0:04:37.5]} 13. c3 {[%clk 0:04:41.2]} 13... Nc6 {[%clk 0:04:32]} 14.
cxd4 {[%clk 0:04:39.5]} 14... Nxd4 {[%clk 0:04:27.9]} 15. Nexd4 {[%clk
0:04:38.2]} 15... exd4 {[%clk 0:04:24.4]} 16. e5 {[%clk 0:04:37.3]} 16... Ng4
{[%clk 0:04:13.2]} 17. Bxh7+ {[%clk 0:04:25.5]} 17... Kh8 {[%clk 0:04:07.3]} 18.
Ng5 {[%clk 0:04:20.5]} 18... d3 {[%clk 0:03:55.2]} 19. Qxg4 {[%clk 0:04:17.9]}
19... Bc8 {[%clk 0:03:48.7]} 20. Qh4 {[%clk 0:04:15.2]} 1-0

[Event "Live Chess"]
[Site "Chess.com"]
[Date "2023.05.20"]
[Round "-"]
[White "LiamBellwood"]
[Black "siddu198"]
[Result "1-0"]
[WhiteElo "2061"]
[BlackElo "1623"]
[TimeControl "300"]
[EndTime "12:47:09 PDT"]
[Termination "LiamBellwood won by resignation"]

1. d4 {[%clk 0:04:57.7]} 1... d5 {[%clk 0:04:59.2]} 2. Nc3 {[%clk 0:04:57.2]}
2... Nf6 {[%clk 0:04:58]} 3. Bf4 {[%clk 0:04:56.8]} 3... Bf5 {[%clk 0:04:57.1]}
4. e3 {[%clk 0:04:55.8]} 4... Nc6 {[%clk 0:04:56.6]} 5. Nb5 {[%clk 0:04:51.3]}
5... e5 {[%clk 0:04:53.2]} 6. dxe5 {[%clk 0:04:47.4]} 6... Nb4 {[%clk
0:04:26.8]} 7. Nd4 {[%clk 0:04:37.8]} 7... Bc5 {[%clk 0:04:05.1]} 8. Nxf5 {[%clk
0:04:34.1]} 8... Qd7 {[%clk 0:04:03.8]} 9. Nxg7+ {[%clk 0:04:24.7]} 9... Kf8
{[%clk 0:03:58.7]} 10. Bh6 {[%clk 0:04:01]} 10... Qf5 {[%clk 0:03:55.3]} 11.
Nxf5+ {[%clk 0:03:59.9]} 1-0

[Event "Live Chess"]
[Site "Chess.com"]
[Date "2023.05.20"]
[Round "-"]
[White "Ferrarifan27"]
[Black "JanMur7"]
[Result "1-0"]
[WhiteElo "2069"]
[BlackElo "1948"]
[TimeControl "300"]
[EndTime "12:47:14 PDT"]
[Termination "Ferrarifan27 won by resignation"]

1. e4 {[%clk 0:04:57.5]} 1... e5 {[%clk 0:04:58.1]} 2. Nf3 {[%clk 0:04:56.1]}
2... Nc6 {[%clk 0:04:56.3]} 3. Bb5 {[%clk 0:04:54.9]} 3... Nf6 {[%clk 0:04:55]}
4. O-O {[%clk 0:04:51.8]} 4... Nxe4 {[%clk 0:04:53.9]} 5. d4 {[%clk 0:04:50.8]}
5... Nd6 {[%clk 0:04:51.6]} 6. Bxc6 {[%clk 0:04:49.7]} 6... dxc6 {[%clk
0:04:50.4]} 7. dxe5 {[%clk 0:04:49.3]} 7... Nf5 {[%clk 0:04:47]} 8. Qxd8+ {[%clk
0:04:48.3]} 8... Kxd8 {[%clk 0:04:43.6]} 9. Nc3 {[%clk 0:04:47.5]} 9... Ne7
{[%clk 0:04:39.5]} 10. Bg5 {[%clk 0:04:44.7]} 10... Ke8 {[%clk 0:04:37.7]} 11.
Rfe1 {[%clk 0:04:42.2]} 11... Bf5 {[%clk 0:04:35.6]} 12. Nd4 {[%clk 0:04:39]}
12... h6 {[%clk 0:04:29.3]} 13. Bxe7 {[%clk 0:04:35.2]} 1-0

[Event "Live Chess"]
[Site "Chess.com"]
[Date "2023.05.20"]
[Round "-"]
[White "ramses-IIG"]
[Black "Tushinskiy"]
[Result "0-1"]
[WhiteElo "825"]
[BlackElo "2098"]
[TimeControl "300"]
[EndTime "12:47:16 PDT"]
[Termination "Tushinskiy won by resignation"]

1. e4 {[%clk 0:04:57.3]} 1... e5 {[%clk 0:04:58.9]} 2. Nf3 {[%clk 0:04:57.1]}
2... d6 {[%clk 0:04:58.8]} 3. Bc4 {[%clk 0:04:55]} 3... Bg4 {[%clk 0:04:58.1]}
4. d3 {[%clk 0:04:53.1]} 4... Nd7 {[%clk 0:04:54.5]} 5. Qe2 {[%clk 0:04:50.9]}
5... Ngf6 {[%clk 0:04:51.6]} 6. Qe3 {[%clk 0:04:48.6]} 6... c6 {[%clk
0:04:50.3]} 7. Ng5 {[%clk 0:04:46.8]} 7... Bh5 {[%clk 0:04:48.5]} 8. g4 {[%clk
0:04:44.3]} 8... Bg6 {[%clk 0:04:47.5]} 9. h4 {[%clk 0:04:42.6]} 9... h6 {[%clk
0:04:46.1]} 10. h5 {[%clk 0:04:41.7]} 10... hxg5 {[%clk 0:04:44.5]} 11. hxg6
{[%clk 0:04:40.1]} 11... Rxh1+ {[%clk 0:04:42.9]} 12. Ke2 {[%clk 0:04:36.8]}
12... d5 {[%clk 0:04:40.9]} 13. exd5 {[%clk 0:04:33.8]} 13... cxd5 {[%clk
0:04:40.8]} 14. Bb5 {[%clk 0:04:29.8]} 14... Bd6 {[%clk 0:04:39.1]} 15. Qxg5
{[%clk 0:04:21.1]} 15... Qe7 {[%clk 0:04:35]} 16. gxf7+ {[%clk 0:04:17.8]} 16...
Kxf7 {[%clk 0:04:32.6]} 17. Be3 {[%clk 0:04:12.6]} 17... a6 {[%clk 0:04:31.6]}
18. Ba4 {[%clk 0:04:10.9]} 18... b5 {[%clk 0:04:29.8]} 19. Bb3 {[%clk
0:04:09.9]} 19... Nc5 {[%clk 0:04:29.2]} 20. Bxc5 {[%clk 0:04:02.6]} 20... Bxc5
{[%clk 0:04:29.1]} 21. Qf5 {[%clk 0:03:51.3]} 21... Qe6 {[%clk 0:04:24.5]} 22.
Qf3 {[%clk 0:03:33.7]} 22... Rh2 {[%clk 0:04:22.7]} 23. Nd2 {[%clk 0:03:26.9]}
23... Rxf2+ {[%clk 0:04:20.7]} 24. Ke1 {[%clk 0:03:24.4]} 24... Rxf3 {[%clk
0:04:18.3]} 0-1

[Event "Live Chess"]
[Site "Chess.com"]
[Date "2023.05.20"]
[Round "-"]
[White "wot-not"]
[Black "WelshTiger"]
[Result "0-1"]
[WhiteElo "1483"]
[BlackElo "2406"]
[TimeControl "300"]
[EndTime "12:47:25 PDT"]
[Termination "WelshTiger won by checkmate"]

1. e4 {[%clk 0:04:58.8]} 1... c5 {[%clk 0:04:55.2]} 2. f4 {[%clk 0:04:57.8]}
2... d6 {[%clk 0:04:55.1]} 3. Nf3 {[%clk 0:04:50.9]} 3... Nc6 {[%clk 0:04:54.2]}
4. d4 {[%clk 0:04:49.3]} 4... cxd4 {[%clk 0:04:54.1]} 5. Bd3 {[%clk 0:04:48.4]}
5... e5 {[%clk 0:04:52.2]} 6. O-O {[%clk 0:04:46.5]} 6... Nf6 {[%clk 0:04:50.9]}
7. Bd2 {[%clk 0:04:41.8]} 7... Be7 {[%clk 0:04:49.8]} 8. Be1 {[%clk 0:04:41]}
8... exf4 {[%clk 0:04:47.9]} 9. Nbd2 {[%clk 0:04:39.3]} 9... Ne5 {[%clk
0:04:45.8]} 10. Nb3 {[%clk 0:04:37.1]} 10... Bg4 {[%clk 0:04:39.7]} 11. Be2
{[%clk 0:04:22.2]} 11... Nxf3+ {[%clk 0:04:22.4]} 12. Bxf3 {[%clk 0:04:21]}
12... Bxf3 {[%clk 0:04:11.6]} 13. Qxf3 {[%clk 0:04:19.4]} 13... O-O {[%clk
0:03:59.1]} 14. Qxf4 {[%clk 0:03:58.3]} 14... Nd7 {[%clk 0:03:57.5]} 15. Rd1
{[%clk 0:03:37]} 15... Ne5 {[%clk 0:03:45.5]} 16. Kh1 {[%clk 0:03:27.2]} 16...
Rc8 {[%clk 0:03:36.9]} 17. Nxd4 {[%clk 0:03:24.6]} 17... Qb6 {[%clk 0:03:36]}
18. Bc3 {[%clk 0:03:07.7]} 18... Rxc3 {[%clk 0:03:27.3]} 19. bxc3 {[%clk
0:03:05.5]} 19... Ng6 {[%clk 0:03:15.8]} 20. Qf2 {[%clk 0:02:59]} 20... Qa5
{[%clk 0:03:11.8]} 21. Nf5 {[%clk 0:02:32.7]} 21... Bf6 {[%clk 0:03:10.8]} 22.
Nxd6 {[%clk 0:02:22.8]} 22... b6 {[%clk 0:03:06.8]} 23. Nf5 {[%clk 0:01:57]}
23... Qxc3 {[%clk 0:03:03.4]} 24. Rd3 {[%clk 0:01:52.2]} 24... Qc4 {[%clk
0:03:00.1]} 25. Ng3 {[%clk 0:01:33.6]} 25... Qxa2 {[%clk 0:02:57.6]} 26. Rf3
{[%clk 0:01:31.8]} 26... Be5 {[%clk 0:02:49.2]} 27. Rf5 {[%clk 0:01:08.9]} 27...
Qe6 {[%clk 0:02:48]} 28. Qe2 {[%clk 0:00:47.2]} 28... a5 {[%clk 0:02:44]} 29.
Qb5 {[%clk 0:00:38.5]} 29... Rc8 {[%clk 0:02:35.1]} 30. h4 {[%clk 0:00:37.5]}
30... Rc5 {[%clk 0:02:29.6]} 31. Qa6 {[%clk 0:00:34.4]} 31... Rc7 {[%clk
0:02:18.2]} 32. h5 {[%clk 0:00:33.1]} 32... Nf8 {[%clk 0:02:17.2]} 33. Qa8
{[%clk 0:00:31.9]} 33... Bxg3 {[%clk 0:02:08.7]} 34. e5 {[%clk 0:00:24.5]} 34...
Qc4 {[%clk 0:02:00.3]} 35. Qd8 {[%clk 0:00:19.5]} 35... Qh4+ {[%clk 0:01:55]}
36. Kg1 {[%clk 0:00:17.6]} 36... Qh2# {[%clk 0:01:53.2]} 0-1

[Event "Live Chess"]
[Site "Chess.com"]
[Date "2023.05.20"]
[Round "-"]
[White "LutherSullivan"]
[Black "ACx04"]
[Result "1-0"]
[WhiteElo "1973"]
[BlackElo "429"]
[TimeControl "300"]
[EndTime "12:47:36 PDT"]
[Termination "LutherSullivan won by checkmate"]

1. d4 {[%clk 0:04:57.8]} 1... d5 {[%clk 0:04:58.6]} 2. Nf3 {[%clk 0:04:55.3]}
2... Bf5 {[%clk 0:04:55.7]} 3. c4 {[%clk 0:04:54.4]} 3... dxc4 {[%clk
0:04:54.4]} 4. Qa4+ {[%clk 0:04:49.2]} 4... Qd7 {[%clk 0:04:51.8]} 5. Qxc4
{[%clk 0:04:47.8]} 5... Nc6 {[%clk 0:04:49.3]} 6. Nc3 {[%clk 0:04:45.2]} 6... e6
{[%clk 0:04:44.1]} 7. e4 {[%clk 0:04:43.3]} 7... Bg6 {[%clk 0:04:42.5]} 8. Be3
{[%clk 0:04:38.5]} 8... O-O-O {[%clk 0:04:39.1]} 9. Qa4 {[%clk 0:04:35.2]} 9...
a6 {[%clk 0:04:37]} 10. Rc1 {[%clk 0:04:26.4]} 10... Nf6 {[%clk 0:04:30.8]} 11.
Bxa6 {[%clk 0:04:01.6]} 11... bxa6 {[%clk 0:04:24.5]} 12. Qxa6+ {[%clk 0:04:01]}
12... Kb8 {[%clk 0:04:19.4]} 13. d5 {[%clk 0:03:58.4]} 13... Na7 {[%clk
0:04:16.7]} 14. Qxa7+ {[%clk 0:03:45]} 14... Kc8 {[%clk 0:04:13.6]} 15. Qa8#
{[%clk 0:03:43.2]} 1-0

[Event "Live Chess"]
[Site "Chess.com"]
[Date "2023.05.20"]
[Round "-"]
[White "MrDodgy"]
[Black "Salpingidis"]
[Result "1/2-1/2"]
[WhiteElo "2286"]
[BlackElo "2285"]
[TimeControl "300"]
[EndTime "12:47:37 PDT"]
[Termination "Game drawn - insufficient material"]

1. e4 {[%clk 0:04:57.7]} 1... e6 {[%clk 0:04:54.3]} 2. d4 {[%clk 0:04:55.8]}
2... d5 {[%clk 0:04:54.2]} 3. Nc3 {[%clk 0:04:54.1]} 3... dxe4 {[%clk
0:04:53.5]} 4. Nxe4 {[%clk 0:04:51.8]} 4... Nd7 {[%clk 0:04:53.4]} 5. Nf3 {[%clk
0:04:48.8]} 5... Ngf6 {[%clk 0:04:53.3]} 6. Nxf6+ {[%clk 0:04:47.9]} 6... Nxf6
{[%clk 0:04:51.8]} 7. Bd3 {[%clk 0:04:47.3]} 7... Be7 {[%clk 0:04:51.7]} 8. Qe2
{[%clk 0:04:45.4]} 8... O-O {[%clk 0:04:51.6]} 9. Bf4 {[%clk 0:04:43.7]} 9... c5
{[%clk 0:04:51.2]} 10. dxc5 {[%clk 0:04:39.7]} 10... Qa5+ {[%clk 0:04:50]} 11.
Bd2 {[%clk 0:04:36.9]} 11... Qxc5 {[%clk 0:04:49.1]} 12. O-O-O {[%clk 0:04:35]}
12... Bd7 {[%clk 0:04:45.1]} 13. g4 {[%clk 0:04:33.5]} 13... Bc6 {[%clk
0:04:39]} 14. g5 {[%clk 0:04:28.5]} 14... Nd5 {[%clk 0:04:37.7]} 15. Ne5 {[%clk
0:04:22.2]} 15... Nb4 {[%clk 0:04:26.5]} 16. Nxc6 {[%clk 0:04:15.7]} 16... Nxd3+
{[%clk 0:04:22.5]} 17. Qxd3 {[%clk 0:04:13.9]} 17... bxc6 {[%clk 0:04:12]} 18.
f4 {[%clk 0:03:53]} 18... Rab8 {[%clk 0:03:59.3]} 19. Bc3 {[%clk 0:03:48.4]}
19... Qd5 {[%clk 0:03:43.7]} 20. Kb1 {[%clk 0:03:38]} 20... Qxd3 {[%clk
0:03:38.1]} 21. Rxd3 {[%clk 0:03:37.9]} 21... Rfd8 {[%clk 0:03:37.2]} 22. Rhd1
{[%clk 0:03:30.4]} 22... Rxd3 {[%clk 0:03:35.9]} 23. Rxd3 {[%clk 0:03:30.3]}
23... Rd8 {[%clk 0:03:34.9]} 24. Rxd8+ {[%clk 0:03:15.8]} 24... Bxd8 {[%clk
0:03:34.8]} 25. h4 {[%clk 0:03:10.2]} 25... f6 {[%clk 0:03:33.2]} 26. Kc1 {[%clk
0:03:05.5]} 26... Kf7 {[%clk 0:03:31.9]} 27. Kd2 {[%clk 0:03:02.7]} 27... Bc7
{[%clk 0:03:30.1]} 28. Ke3 {[%clk 0:02:59.7]} 28... e5 {[%clk 0:03:23.1]} 29.
fxe5 {[%clk 0:02:54.9]} 29... fxe5 {[%clk 0:03:23]} 30. Ke4 {[%clk 0:02:50.2]}
30... Ke6 {[%clk 0:03:21.2]} 31. b4 {[%clk 0:02:48]} 31... g6 {[%clk 0:03:20]}
32. a4 {[%clk 0:02:44.8]} 32... a6 {[%clk 0:03:14.5]} 33. Bb2 {[%clk 0:02:41.5]}
33... Bd6 {[%clk 0:03:12.2]} 34. Bc3 {[%clk 0:02:37.9]} 34... Bc7 {[%clk
0:03:02.4]} 35. Be1 {[%clk 0:02:32.8]} 35... Bb6 {[%clk 0:02:56.9]} 36. Bg3
{[%clk 0:02:27.2]} 36... Bd4 {[%clk 0:02:56.2]} 37. c4 {[%clk 0:02:21.3]} 37...
Bc3 {[%clk 0:02:48]} 38. b5 {[%clk 0:02:20.1]} 38... cxb5 {[%clk 0:02:47.2]} 39.
cxb5 {[%clk 0:02:16.5]} 39... axb5 {[%clk 0:02:46.1]} 40. axb5 {[%clk
0:02:15.7]} 40... Bd4 {[%clk 0:02:43.6]} 41. Be1 {[%clk 0:02:09.6]} 41... Kd6
{[%clk 0:02:32.3]} 42. Bb4+ {[%clk 0:02:07.5]} 42... Kc7 {[%clk 0:02:24.1]} 43.
Ba5+ {[%clk 0:02:05.9]} 43... Kb7 {[%clk 0:02:18.8]} 44. Kd5 {[%clk 0:01:55.6]}
44... Bf2 {[%clk 0:02:09.7]} 45. Kxe5 {[%clk 0:01:50.1]} 45... Bxh4 {[%clk
0:02:09.3]} 46. Bd8 {[%clk 0:01:43.9]} 46... Bxg5 {[%clk 0:01:59.2]} 47. Bxg5
{[%clk 0:01:39]} 47... Kb6 {[%clk 0:01:58.6]} 48. Kf6 {[%clk 0:01:38]} 48...
Kxb5 {[%clk 0:01:58.5]} 49. Kg7 {[%clk 0:01:37.6]} 49... h5 {[%clk 0:01:57.3]}
50. Kxg6 {[%clk 0:01:36.6]} 50... h4 {[%clk 0:01:57.2]} 51. Bxh4 {[%clk
0:01:36.2]} 1/2-1/2